fUST/lending_fUST_20251217
["ID","MTS","AMOUNT","RATE_DAILY","PERIOD"]
[398899754,1765979232977,-1416.87,0.00012992,2]
[398899755,1765979233005,-500.0,0.00013273,2]
[398899756,1765979233035,-30.73388148,0.00013273,2]
[398899757,1765979241820,-356.53295208,0.00013273,2]
[398899758,1765979241847,-499.99,0.00013273,2]
[398899759,1765979241988,-256.8339496,0.00013508,2]
[398899760,1765979242017,-385.0,0.00013697,2]
[398899761,1765979242045,-300.0,0.00013697,2]
[398899762,1765979242072,-500.0,0.00013698,2]
[398899763,1765979242104,-1593.97,0.00013714,2]
[398899764,1765979242145,-300.0,0.00013756,2]
[398899765,1765979242178,-415.35619664,0.00013818,2]
[398899766,1765979253115,-462.10534614,0.00013818,2]
[398899767,1765979293172,165.49,8.25e-05,2]
[398899768,1765979293562,330.99,9e-05,2]
[398899769,1765979294040,496.48,9.75e-05,2]
[398899770,1765979296519,-156.15274242,0.000105,2]
[398899771,1765979298070,-238.00945393,0.000105,2]
[398899772,1765979359127,-267.81780365,0.000105,2]
[398899773,1765979359149,-150.0,0.00010875,2]
[398899774,1765979359175,-198.74914237,0.00011249,2]
[398899776,1765979383217,150.74,8.037e-05,2]
[398899777,1765979383646,301.47,8.768e-05,2]
[398899778,1765979384261,452.21,9.499e-05,2]
[398899779,1765979386422,-369.81,0.00010229,2]
[398899780,1765979388829,-212.98,0.00010229,2]
[398899781,1765979416463,-20.16,0.00010229,2]
[398899782,1765979416485,-177.44,0.00010229,2]
[398899783,1765979420178,-293.73535749,0.00010229,2]
[398899805,1765979432447,-91.82464251,0.00010229,2]
[398899807,1765979432457,-753.69,0.0001096,2]
[398899809,1765979432467,-503.73216049,0.00011691,2]
[398899816,1765979432523,-400.68783951,0.00011691,2]
[398899818,1765979432532,-76.09815374,0.00012421,2]
[398899821,1765979432544,-323.0,0.00012421,2]
[398900082,1765979438821,-656.06184626,0.00012421,2]
[398900083,1765979438831,-126.81815374,0.00012875,2]
[398900202,1765979440856,-3e-08,0.00012875,2]
[398900305,1765979443673,-50.18184623,0.00012875,2]
[398900306,1765979443682,-1205.9,0.00013152,2]
[398900307,1765979443692,-743.91815377,0.00013681,2]
[398900308,1765979446528,-2148.53299314,0.00013681,2]
[398900309,1765979446538,-500.0,0.00013698,2]
[398900310,1765979446547,-503.6800373,0.00013699,2]
[398900311,1765979446556,-502.16180658,0.00013699,2]
[398900312,1765979446565,-501.25831688,0.00013699,2]
[398900313,1765979446574,-300.0,0.00013818,2]
[398900314,1765979446584,-300.0,0.00013818,2]
[398900316,1765979446593,-500.0,0.00013819,2]
[398900318,1765979446602,-528.9802192,0.00013819,2]
[398900320,1765979446611,-754.70336612,0.00013821,2]
[398900322,1765979446620,-250.8023188,0.00013874,2]
[398900323,1765979446629,-1356.64,0.00013883,2]
[398900325,1765979446638,-502.58625511,0.00014321,2]
[398900327,1765979446647,-1507.37,0.00014613,2]
[398900329,1765979446656,-256.8339496,0.0001486,2]
[398900330,1765979446665,-204.0,0.00014875,2]
[398900332,1765979446675,-211.80223142,0.00015101,2]
[398900333,1765979446683,-621.28044521,0.00015101,2]
[398900334,1765979446692,-500.0,0.00015101,2]
[398900335,1765979446702,-338.92044943,0.00015101,2]
[398900336,1765979446711,-621.28044521,0.00015101,2]
[398900337,1765979446720,-621.28044521,0.00015101,2]
[398900338,1765979446730,-169.46757698,0.00015101,2]
[398900339,1765979446739,-621.28044521,0.00015101,2]
[398900340,1765979446748,-621.28044521,0.00015101,2]
[398900341,1765979446757,-621.28044521,0.00015101,2]
[398900342,1765979446766,-621.28044521,0.00015101,2]
[398900343,1765979446775,-621.28044521,0.00015101,2]
[398900344,1765979446784,-621.28044521,0.00015101,2]
[398900345,1765979446793,-621.28044521,0.00015101,2]
[398900346,1765979446802,-621.28044521,0.00015101,2]
[398900347,1765979446811,-621.28044521,0.00015101,2]
[398900348,1765979446820,-621.28044521,0.00015101,2]
[398900349,1765979446829,-621.28044521,0.00015101,2]
[398900350,1765979446838,-621.28044521,0.00015101,2]
[398900351,1765979446847,-621.28044521,0.00015101,2]
[398900352,1765979446856,-621.28044521,0.00015101,2]
[398900353,1765979446865,-621.28044521,0.00015101,2]
[398900354,1765979446876,-621.28044521,0.00015101,2]
[398900355,1765979446886,-621.28044521,0.00015101,2]
[398900356,1765979446895,-621.28044521,0.00015101,2]
[398900357,1765979446908,-621.28044521,0.00015101,2]
[398900358,1765979446917,-621.28044521,0.00015101,2]
[398900359,1765979446926,-621.28044521,0.00015101,2]
[398900360,1765979446935,-621.28044521,0.00015101,2]
[398900361,1765979446945,-621.28044521,0.00015101,2]
[398900362,1765979446954,-621.28044521,0.00015101,2]
[398900363,1765979446963,-621.28044521,0.00015101,2]
[398900364,1765979446972,-621.28044521,0.00015101,2]
[398900365,1765979446982,-621.28044521,0.00015101,2]
[398900366,1765979446991,-621.28044521,0.00015101,2]
[398900367,1765979447001,-621.28044521,0.00015101,2]
[398900368,1765979447011,-621.28044521,0.00015101,2]
[398900369,1765979447024,-621.28044521,0.00015101,2]
[398900370,1765979447037,-621.28044521,0.00015101,2]
[398900371,1765979447049,-621.28044521,0.00015101,2]
[398900372,1765979447061,-621.28044521,0.00015101,2]
[398900373,1765979447074,-621.28044521,0.00015101,2]
[398900374,1765979447084,-621.28044521,0.00015101,2]
[398900375,1765979447094,-621.28044521,0.00015101,2]
[398900376,1765979447105,-621.28044521,0.00015101,2]
[398900377,1765979447117,-621.28044521,0.00015101,2]
[398900378,1765979447129,-621.28044521,0.00015101,2]
[398900379,1765979447140,-621.28044521,0.00015101,2]
[398900380,1765979447152,-621.28044521,0.00015101,2]
[398900381,1765979447164,-621.28044521,0.00015101,2]
[398900382,1765979447176,-621.28044521,0.00015101,2]
[398900383,1765979447187,-621.28044521,0.00015101,2]
[398900384,1765979447198,-621.28044521,0.00015101,2]
[398900385,1765979447210,-621.28044521,0.00015101,2]
[398900386,1765979447222,-621.28044521,0.00015101,2]
[398900387,1765979447234,-621.28044521,0.00015101,2]
[398900388,1765979447245,-621.28044521,0.00015101,2]
[398900389,1765979447257,-621.28044521,0.00015101,2]
[398900390,1765979447268,-621.28044521,0.00015101,2]
[398900391,1765979447279,-621.28044521,0.00015101,2]
[398900392,1765979447291,-621.28044521,0.00015101,2]
[398900393,1765979447301,-806.0,0.00015102,2]
[398900394,1765979447313,-36426.6774063,0.00015103,2]
[398900395,1765979447324,-417.0,0.00015141,2]
[398900396,1765979447336,-768.0929506,0.0001545,2]
[398900397,1765979447347,-1060.6010647,0.0001547,2]
[398900398,1765979447358,-256.8339496,0.00016213,2]
[398900399,1765979447369,-231.0,0.00016875,2]
[398900400,1765979447379,-11226.0,0.00017,2]
[398900401,1765979447390,-256.8339496,0.00017565,2]
[398900402,1765979447401,-188.1454,0.00017961,2]
[398900403,1765979447411,-281.47767864,0.00017961,2]
[398900404,1765979447420,-500.0,0.0001863,2]
[398900405,1765979447432,-201.70744982,0.0001863,2]
[398900406,1765979447442,-500.0,0.00018767,2]
[398900407,1765979447453,-258.0,0.00018875,2]
[398900408,1765979447464,-251.09076016,0.00018904,2]
[398900409,1765979447475,-500.0,0.00018904,2]
[398900410,1765979447486,-500.0,0.00018904,2]
[398900411,1765979447498,-151.50226046,0.00018904,2]
[398900412,1765979447509,-150.0,0.00018904,2]
[398900413,1765979447520,-150.0,0.00018904,2]
[398900414,1765979447532,-150.0,0.00018904,2]
[398900415,1765979447543,-150.0,0.00018904,2]
[398900416,1765979447554,-500.0,0.00018904,2]
[398900417,1765979447566,-150.0,0.00018904,2]
[398900418,1765979447576,-500.0,0.00018904,2]
[398900419,1765979447586,-500.0,0.00018904,2]
[398900420,1765979447595,-150.0,0.00018904,2]
[398900421,1765979447605,-150.0,0.00018904,2]
[398900422,1765979447614,-202.09142869,0.00018904,2]
[398900423,1765979447625,-150.0,0.00018904,2]
[398900424,1765979447636,-150.0,0.00018904,2]
[398900425,1765979447647,-150.0,0.00018904,2]
[398900426,1765979447660,-500.0,0.00018904,2]
[398900427,1765979447671,-150.0,0.00018904,2]
[398900428,1765979447683,-500.0,0.00018904,2]
[398900429,1765979447693,-201.70719187,0.00018904,2]
[398900430,1765979447702,-152.30279601,0.00018904,2]
[398900431,1765979447713,-150.0,0.00018904,2]
[398900432,1765979447724,-239.92429579,0.00018904,2]
[398900433,1765979447735,-150.0,0.00018904,2]
[398900434,1765979447745,-257.09078355,0.00018917,2]
[398900435,1765979447756,-333.33333333,0.00019,2]
[398900436,1765979447766,-502.62683157,0.00019041,2]
[398900437,1765979447776,-500.0,0.00019041,2]
[398900438,1765979447786,-150.0,0.00019041,2]
[398900439,1765979447796,-150.0,0.00019041,2]
[398900440,1765979447806,-150.0,0.00019041,2]
[398900441,1765979447817,-150.0,0.00019041,2]
[398900442,1765979447827,-150.0,0.00019041,2]
[398900443,1765979447837,-608.24128653,0.00019041,2]
[398900444,1765979447847,-500.0,0.00019041,2]
[398900445,1765979447858,-500.0,0.00019041,2]
[398900446,1765979447868,-152.21406531,0.00019041,2]
[398900447,1765979447879,-150.0,0.00019041,2]
[398900448,1765979447890,-203.84055143,0.00019041,2]
[398900449,1765979447902,-150.0,0.00019041,2]
[398900450,1765979447914,-150.0,0.00019041,2]
[398900451,1765979447924,-513.91090207,0.00019041,2]
[398900452,1765979447934,-150.0,0.00019041,2]
[398900453,1765979447946,-531.50696445,0.00019041,2]
[398900454,1765979447957,-150.0,0.00019041,2]
[398900455,1765979447966,-150.0,0.00019041,2]
[398900456,1765979447977,-2544.73008744,0.00019097,2]
[398900457,1765979447988,-214.7959541,0.00019112,2]
[398900458,1765979447999,-280.0,0.00019143,2]
[398900459,1765979448009,-153.79592334,0.00019178,2]
[398900460,1765979448019,-150.0,0.00019178,2]
[398900461,1765979448030,-500.0,0.00019178,2]
[398900462,1765979448047,-150.0,0.00019178,2]
[398900463,1765979448057,-150.0,0.00019178,2]
[398900464,1765979448068,-150.0,0.00019178,2]
[398900465,1765979448078,-257.58846624,0.00019178,2]
[398900466,1765979448089,-500.0,0.00019178,2]
[398900467,1765979448099,-206.47085118,0.00019178,2]
[398900468,1765979448109,-150.0,0.00019178,2]
[398900469,1765979448121,-200.0,0.00019178,2]
[398900470,1765979448131,-1162.863707,0.00019178,2]
[398900471,1765979448142,-1162.863707,0.00019178,2]
[398900472,1765979448153,-1162.863707,0.00019178,2]
[398900473,1765979448166,-1162.863707,0.00019178,2]
[398900474,1765979448177,-1162.863707,0.00019178,2]
[398900475,1765979448187,-1162.863707,0.00019178,2]
[398900476,1765979448198,-1162.863707,0.00019178,2]
[398900477,1765979448209,-1162.863707,0.00019178,2]
[398900478,1765979448220,-160.0,0.00019181,2]
[398900479,1765979448231,-2000.0,0.00019197,2]
[398900480,1765979448242,-150.0,0.00019315,2]
[398900481,1765979448253,-313.71421603,0.00019315,2]
[398900482,1765979448264,-156.94412249,0.00019315,2]
[398900483,1765979448274,-150.0,0.00019315,2]
[398900484,1765979448285,-202.02713431,0.00019315,2]
[398900485,1765979448296,-500.0,0.00019315,2]
[398900486,1765979448307,-150.0,0.00019315,2]
[398900487,1765979448319,-1162.863707,0.00019315,2]
[398900488,1765979448329,-1162.863707,0.00019315,2]
[398900489,1765979448340,-1162.863707,0.00019315,2]
[398900490,1765979448489,-1162.863707,0.00019315,2]
[398900491,1765979448499,-340.0,0.00019348,2]
[398900492,1765979448508,-333.33333333,0.00019443,9]
[398900493,1765979448517,-150.0,0.00019452,2]
[398900494,1765979448526,-159.0,0.00019507,3]
[398900495,1765979448535,-363.0,0.00019523,2]
[398900496,1765979448545,-250.0,0.00019589,2]
[398900497,1765979448554,-260.0,0.00019729,2]
[398900498,1765979448563,-233.91684778,0.00019737,2]
[398900499,1765979448572,-221.32804112,0.00019737,2]
[398900500,1765979448582,-333.33333333,0.00019885,17]
[398900501,1765979448591,-194.2902679,0.0002,2]
[398900502,1765979448600,-209.77239607,0.0002,2]
[398900503,1765979448610,-203.59866417,0.00020068,5]
[398900504,1765979448620,-701.718826,0.00020187,2]
[398900505,1765979448630,-360.0,0.00020277,2]
[398900506,1765979448639,-283.02525717,0.00020738,5]
[398900507,1765979448648,-460.0,0.00020824,2]
[398900508,1765979448657,-285.0,0.00020875,2]
[398900509,1765979448667,-360.62433194,0.00020879,2]
[398900510,1765979448677,-859.1838164,0.00020955,2]
[398900511,1765979448686,-560.0,0.00021372,2]
[398900512,1765979448695,-489.0,0.00021896,2]
[398900513,1765979448704,-151.0,0.00021918,2]
[398900514,1765979448714,-151.0,0.00021918,2]
[398900515,1765979448723,-151.0,0.00021918,2]
[398900516,1765979448732,-151.0,0.00021918,2]
[398900517,1765979448741,-151.0,0.00021918,2]
[398900518,1765979448750,-151.0,0.00021918,2]
[398900519,1765979448760,-151.0,0.00021918,2]
[398900520,1765979448769,-151.0,0.00021918,2]
[398900521,1765979448779,-151.0,0.00021918,2]
[398900522,1765979448788,-221.765393,0.00021918,2]
[398900523,1765979448797,-151.0,0.00021918,2]
[398900524,1765979448806,-151.0,0.00021918,2]
[398900525,1765979448815,-151.0,0.00021918,2]
[398900526,1765979448825,-151.0,0.00021918,2]
[398900527,1765979448834,-151.0,0.00021918,2]
[398900528,1765979448843,-151.0,0.00021918,2]
[398900529,1765979448852,-151.0,0.00021918,2]
[398900530,1765979448862,-151.0,0.00021918,2]
[398900531,1765979448872,-151.0,0.00021918,2]
[398900532,1765979448882,-151.0,0.00021918,2]
[398900533,1765979448891,-168.149431,0.00021918,2]
[398900534,1765979448904,-151.0,0.00021918,2]
[398900535,1765979448917,-151.0,0.00021918,2]
[398900536,1765979448926,-151.0,0.00021918,2]
[398900537,1765979448936,-151.0,0.00021918,2]
[398900538,1765979448947,-151.0,0.00021918,2]
[398900539,1765979448957,-151.0,0.00021918,2]
[398900540,1765979448966,-151.0,0.00021918,2]
[398900541,1765979448975,-151.0,0.00021918,2]
[398900542,1765979448986,-151.0,0.00021918,2]
[398900543,1765979448995,-151.0,0.00021918,2]
[398900544,1765979449004,-151.0,0.00021918,2]
[398900545,1765979449013,-151.0,0.00021918,2]
[398900546,1765979449023,-151.0,0.00021918,2]
[398900547,1765979449031,-293.573713,0.00021918,2]
[398900548,1765979449040,-151.0,0.00021918,2]
[398900549,1765979449050,-230.482853,0.00021918,2]
[398900550,1765979449059,-156.529842,0.00021918,2]
[398900551,1765979449069,-156.529842,0.00021918,2]
[398900552,1765979449078,-156.529842,0.00021918,2]
[398900553,1765979449088,-156.529842,0.00021918,2]
[398900554,1765979449097,-156.529842,0.00021918,2]
[398900555,1765979449106,-156.529842,0.00021918,2]
[398900556,1765979449116,-156.529842,0.00021918,2]
[398900557,1765979449128,-156.529842,0.00021918,2]
[398900558,1765979449137,-156.529842,0.00021918,2]
[398900559,1765979449147,-156.529842,0.00021918,2]
[398900560,1765979449157,-156.529842,0.00021918,2]
[398900561,1765979449166,-156.529842,0.00021918,2]
[398900562,1765979449176,-156.529842,0.00021918,2]
[398900563,1765979449186,-156.529842,0.00021918,2]
[398900564,1765979449196,-156.529842,0.00021918,2]
[398900565,1765979449205,-156.529842,0.00021918,2]
[398900566,1765979449214,-151.0,0.00021918,2]
[398900567,1765979449223,-151.0,0.00021918,2]
[398900568,1765979449232,-151.0,0.00021918,2]
[398900569,1765979449241,-151.0,0.00021918,2]
[398900570,1765979449252,-151.0,0.00021918,2]
[398900571,1765979449261,-151.0,0.00021918,2]
[398900572,1765979449270,-151.0,0.00021918,2]
[398900573,1765979449280,-151.0,0.00021918,2]
[398900574,1765979449289,-151.0,0.00021918,2]
[398900575,1765979449299,-271.900501,0.00021918,2]
[398900576,1765979449308,-1162.863707,0.00021918,2]
[398900577,1765979449318,-1162.863707,0.00021918,2]
[398900578,1765979449327,-1162.863707,0.00021918,2]
[398900579,1765979449336,-1162.863707,0.00021918,2]
[398900580,1765979449346,-156.529842,0.00021918,2]
[398900581,1765979449355,-156.529842,0.00021918,2]
[398900582,1765979449364,-156.529842,0.00021918,2]
[398900583,1765979449375,-156.529851,0.00021918,2]
[398900584,1765979449384,-151.0,0.00021918,2]
[398900585,1765979449394,-179.22721928,0.00021918,2]
[398900586,1765979449403,-660.0,0.0002192,2]
[398900587,1765979449413,-760.0,0.00022468,2]
[398900588,1765979449422,-312.0,0.00022875,2]
[398900589,1765979449432,-420.0,0.00023016,2]
[398900590,1765979449441,-154.51684334,0.00023763,2]
[398900591,1765979449451,-618.06737337,0.00023763,2]
[398900592,1765979449460,-1390.65159008,0.00023763,2]
[398900593,1765979449470,-2544.7300874,0.00023783,2]
[398900594,1765979449479,-151.0,0.00024112,2]
[398900595,1765979449489,-1933.16358689,0.0002427,2]
[398900596,1765979449499,-150.0,0.00024658,2]
[398900597,1765979449508,-23290.5364632,0.00024736,2]
[398900598,1765979449517,-151.0,0.00024736,7]
[398900599,1765979449527,-151.0,0.00024736,7]
[398900600,1765979449536,-151.0,0.00024736,7]
[398900601,1765979449545,-151.0,0.00024736,7]
[398900602,1765979449555,-151.0,0.00024736,7]
[398900603,1765979449564,-151.0,0.00024736,7]
[398900604,1765979449573,-151.0,0.00024736,7]
[398900605,1765979449582,-151.0,0.00024736,7]
[398900606,1765979449591,-151.0,0.00024736,7]
[398900607,1765979449600,-151.0,0.00024736,7]
[398900608,1765979449609,-1162.863707,0.00024736,7]
[398900609,1765979449618,-1162.863707,0.00024736,7]
[398900610,1765979449628,-1162.863707,0.00024736,7]
[398900611,1765979449637,-1162.863711,0.00024736,7]
[398900612,1765979449646,-339.0,0.00024875,2]
[398900613,1765979449655,-418.33,0.0002489,3]
[398900614,1765979449664,-209.17,0.0002489,3]
[398900615,1765979449673,-627.51,0.0002489,3]
[398900616,1765979449682,-192.89092,0.0002489,7]
[398900617,1765979449691,-15647.72,0.000249,2]
[398900618,1765979449699,-151.0,0.000249,7]
[398900619,1765979449708,-151.0,0.000249,7]
[398900620,1765979449717,-151.0,0.000249,7]
[398900621,1765979449726,-151.0,0.000249,7]
[398900622,1765979449736,-151.0,0.000249,7]
[398900623,1765979449745,-151.0,0.000249,7]
[398900624,1765979449754,-151.0,0.000249,7]
[398900625,1765979449762,-151.0,0.000249,7]
[398900626,1765979449771,-151.0,0.000249,7]
[398900627,1765979449780,-151.0,0.000249,7]
[398900628,1765979449789,-151.0,0.000249,7]
[398900629,1765979449797,-151.0,0.000249,7]
[398900630,1765979449806,-151.0,0.000249,7]
[398900631,1765979449815,-151.0,0.000249,7]
[398900632,1765979449824,-151.0,0.000249,7]
[398900633,1765979449833,-151.0,0.000249,7]
[398900634,1765979449841,-151.0,0.000249,7]
[398900635,1765979449850,-255.852592,0.000249,7]
[398900636,1765979449859,-9553.9579173,0.000249,2]
[398900637,1765979449868,-150.0,0.00024963,2]
[398900638,1765979449878,-150.0,0.00024963,2]
[398900639,1765979449886,-221.32799909,0.00024963,2]
[398900640,1765979449896,-151.0,0.0002499,7]
[398900641,1765979449908,-151.0,0.0002499,7]
[398900642,1765979449918,-250.0,0.00025205,2]
[398900643,1765979449927,-300.41128243,0.00025753,2]
[398900644,1765979449936,-221.54936916,0.00025792,2]
[398900645,1765979449945,-180.90310123,0.00025792,2]
[398900646,1765979449954,-1592.32631955,0.0002598,2]
[398900647,1765979449963,-1714.16334,0.00026,30]
[398900648,1765979449972,-836.66,0.0002626,3]
[398900649,1765979449984,-418.34,0.0002626,3]
[398900650,1765979449992,-238.69419845,0.00026466,2]
[398900651,1765979450001,-813.58026202,0.00026526,5]
[398900652,1765979450010,-1592.32631955,0.00026626,2]
[398900653,1765979450019,-151.0,0.00026636,7]
[398900654,1765979450027,-151.0,0.00026636,7]
[398900655,1765979450036,-151.0,0.00026636,7]
[398900656,1765979450045,-221.738177,0.00026636,7]
[398900657,1765979450054,-151.0,0.00026636,7]
[398900658,1765979450063,-151.0,0.00026636,7]
[398900659,1765979450072,-701.718826,0.00026676,2]
[398900660,1765979450081,-366.0,0.00026875,2]
[398900661,1765979450089,-251.5,0.00026904,10]
[398900662,1765979450098,-431.5,0.00026904,10]
[398900663,1765979450107,-1592.32631955,0.00027011,2]
[398900664,1765979450116,-20000.0,0.00027021,2]
[398900665,1765979450125,-514.84070869,0.00027021,2]
[398900666,1765979450133,-251.92855197,0.00027021,2]
[398900667,1765979450142,-239.05974866,0.00027127,2]
[398900668,1765979450151,-150.0,0.00027397,2]
[398900669,1765979450160,-151.0,0.00027397,7]
[398900670,1765979450169,-151.0,0.00027397,7]
[398900671,1765979450179,-151.0,0.00027397,7]
[398900672,1765979450187,-254.456966,0.00027397,7]
[398900673,1765979450196,-151.0,0.00027397,7]
[398900674,1765979450205,-151.0,0.00027397,7]
[398900675,1765979450213,-151.0,0.00027397,7]
[398900676,1765979450222,-151.0,0.00027397,7]
[398900677,1765979450231,-151.0,0.00027397,7]
[398900678,1765979450240,-245.238876,0.00027397,7]
[398900679,1765979450249,-150.0,0.00027397,5]
[398900680,1765979450258,-1130.96892763,0.00027412,5]
[398900681,1765979450267,-150.0,0.00027534,2]
[398900682,1765979450277,-533.88981491,0.00027569,2]
[398900683,1765979450285,-243.97256902,0.00027671,2]
[398900684,1765979450294,-250.0,0.00027945,5]
[398900685,1765979450303,-15647.72,0.000281,2]
[398900686,1765979450311,-151.0,0.000281,7]
[398900687,1765979450320,-151.0,0.000281,7]
[398900688,1765979450329,-151.0,0.000281,7]
[398900689,1765979450337,-151.0,0.000281,7]
[398900690,1765979450346,-151.0,0.000281,7]
[398900691,1765979450356,-553.64373807,0.00028117,2]
[398900692,1765979450365,-1592.32631955,0.0002842,2]
[398900693,1765979450374,-192.89252514,0.0002843,30]
[398900694,1765979450383,-2544.7300874,0.00028469,2]
[398900695,1765979450392,-350.18452566,0.00028493,5]
[398900696,1765979450401,-667.18737496,0.00028665,2]
[398900697,1765979450410,-206.27022175,0.00028758,5]
[398900698,1765979450419,-393.0,0.00028875,2]
[398900699,1765979450428,-1592.32631955,0.0002898,2]
[398900700,1765979450437,-1592.32631955,0.0002899,2]
[398900701,1765979450446,-489.0,0.00028996,3]
[398900702,1765979450454,-29021.14496689,0.00029,120]
[398900703,1765979450464,-1592.32631955,0.00029555,2]
[398900704,1765979450473,-151.0,0.000299,18]
[398900705,1765979450487,-33681.33947548,0.0002999,2]
[398900706,1765979450499,-1592.32631955,0.0002999,2]
[398900707,1765979450508,-21.50509259,0.0003,120]
[398900708,1765979450517,-1000.02366413,0.0003,2]
[398900709,1765979450526,-32004.86811315,0.0003,4]
[398900710,1765979450535,-1000.0,0.0003,14]
[398900711,1765979450544,-1000.0,0.0003,14]
[398900712,1765979450553,-1000.0,0.0003,14]
[398900713,1765979450563,-1000.0,0.0003,14]
[398900714,1765979450572,-1000.0,0.0003,14]
[398900715,1765979450582,-1000.0,0.0003,14]
[398900716,1765979450591,-1000.0,0.0003,14]
[398900717,1765979450600,-1000.0,0.0003,14]
[398900718,1765979450609,-1000.0,0.0003,14]
[398900719,1765979450618,-1000.0,0.0003,14]
[398900720,1765979450628,-1000.0,0.0003,14]
[398900721,1765979450638,-984.58689977,0.0003,14]
[398900722,1765979450647,-5196.8211309,0.00030031,2]
[398900723,1765979450655,-302.62109961,0.00030177,2]
[398900724,1765979450665,-151.0,0.000306,17]
[398900725,1765979450674,-3184.6526391,0.00030671,2]
[398900726,1765979450683,-420.0,0.00030875,2]
[398900727,1765979450692,-524.10727237,0.00030943,2]
[398900728,1765979450701,-1000.0,0.00031,14]
[398900729,1765979450711,-176.145,0.00031037,28]
[398900730,1765979450719,-14439.59986099,0.000311,2]
[398900731,1765979450750,-1208.12013901,0.000311,2]
[398900732,1765979450759,-1159.5675312,0.00031212,2]
[398900733,1765979450768,-151.0,0.000313,15]
[398900734,1765979450777,-1592.32631955,0.0003188,2]
[398900735,1765979450786,-1592.32631955,0.0003189,2]
[398900736,1765979450795,-20391.52847963,0.000319,2]
[398900737,1765979450806,-20215.24677014,0.000319,2]
[398900738,1765979450815,-151.0,0.000319,7]
[398900739,1765979450824,-151.0,0.000319,7]
[398900740,1765979450833,-151.0,0.000319,7]
[398900741,1765979450842,-151.0,0.000319,7]
[398900742,1765979450851,-151.0,0.000319,7]
[398900743,1765979450859,-151.0,0.000319,7]
[398900744,1765979450869,-151.0,0.000319,7]
[398900745,1765979450878,-152.0,0.000319,7]
[398900746,1765979450887,-151.0,0.000319,7]
[398900747,1765979450896,-152.0,0.000319,7]
[398900748,1765979450908,-152.0,0.000319,7]
[398900749,1765979450916,-153.1296881,0.000319,7]
[398900750,1765979450926,-151.0,0.000319,7]
[398900751,1765979450935,-151.0,0.000319,7]
[398900752,1765979450944,-151.0,0.000319,7]
[398900753,1765979450953,-151.0,0.000319,7]
[398900754,1765979450962,-151.0,0.000319,7]
[398900755,1765979450971,-151.0,0.000319,7]
[398900756,1765979450980,-151.0,0.000319,7]
[398900757,1765979450989,-151.0,0.000319,7]
[398900758,1765979450998,-151.0,0.000319,7]
[398900759,1765979451007,-151.0,0.000319,7]
[398900760,1765979451015,-282.0,0.000319,7]
[398900761,1765979451024,-6799.65,0.000319,2]
[398900762,1765979451033,-428.01177027,0.00032875,2]
[398900763,1765979451042,-151.0,0.00032877,31]
[398900764,1765979451051,-151.0,0.00032877,31]
[398900765,1765979451060,-151.0,0.00032877,31]
[398900766,1765979451069,-283.394874,0.00032877,31]
[398900767,1765979451078,-236.73,0.00032877,10]
[398900768,1765979451087,-197.27,0.00032877,10]
[398900769,1765979451096,-197.27,0.00032877,10]
[398900770,1765979451109,-3184.6526391,0.0003298,2]
[398900771,1765979451120,-1756.42434442,0.00033,4]
[398900772,1765979451130,-25893.45815472,0.00033,2]
[398900773,1765979463441,150.0,8.561e-05,2]
[398900774,1765979469260,150.0,9.339e-05,2]